Cogmind - Beta 11.1 @@@ ROGUE MODE // 2022.11.03 @ 00:12:56 Player: Teratos Result: Self-destructed Performance ------------- Evolutions (1) 500 Regions Visited (3) 600 Robots Destroyed (9) 45 Value Destroyed (196) 196 Prototype IDs (1) 20 Alien Tech Used (0) 0 Bonus (200) 200 TOTAL SCORE: 1561 Bonus ------- Pacifist 200 Cogmind --------- Core Integrity 365/400 Matter 112/300 Energy 125/125 System Corruption 0% Temperature Cool (0) Movement Treading (240) Ox1 Location -9/Mines Parts ------- > --- POWER (1) -------- Light Ion Engine > --- PROPULSION (2) --- Light Treads Light Treads > --- UTILITY (2) ------ Heat Sink High-capacity Storage Unit > --- WEAPON (4) ------- Small Laser Assault Rifle > --- INVENTORY (20) --- Medium Laser Peak State ------------ > --- POWER ------------ (None) > --- PROPULSION ------- Light Treads Improved Flight Unit > --- UTILITY ---------- High-capacity Storage Unit > --- WEAPON ----------- Small Laser Assault Rifle > --- INVENTORY -------- Medium Laser [Rating: 7] Favorites ----------- Power Light Ion Engine Engine Light Ion Engine Propulsion Light Treads Treads Light Treads Flight Unit Improved Flight Unit Utility High-capacity Storage Unit Device Heat Sink Storage High-capacity Storage Unit Weapon Small Laser Energy Gun Small Laser Ballistic Gun Assault Rifle Build | -11 -10 -9 -9 ------- Run | Scr Mat Mat Min Slots Evolved 2 | . . 2 . Power . | . . . . Propulsion . | . . . . Utility . | . . . . Weapon 2 | . . 2 . Parts Attached 13 | 5 2 5 1 Power 1 | . . 1 . Engine 1 | . . 1 . Core . | . . . . Reactor . | . . . . Propulsion 5 | 2 . 3 . Treads 4 | 2 . 2 . Leg . | . . . . Wheel . | . . . . Hover . | . . . . Flight 1 | . . 1 . Utility 3 | . 2 1 . Device 2 | . 1 1 . Storage 1 | . 1 . . Processor . | . . . . Hackware . | . . . . Protection . | . . . . Artifact . | . . . . Weapon 4 | 3 . . 1 Energy Gun 3 | 2 . . 1 Energy Cannon . | . . . . Ballistic Gun 1 | 1 . . . Ballistic Cannon . | . . . . Launcher . | . . . . Special Weapon . | . . . . Impact Weapon . | . . . . Slashing Weapon . | . . . . Piercing Weapon . | . . . . Special Melee Weapon . | . . . . Unidentified Prototypes 1 | . . 1 . Parts Lost . | . . . . Power . | . . . . Propulsion . | . . . . Utility . | . . . . Weapon . | . . . . Highest Loss Streak . | . . . . To Critical Strikes . | . . . . Average Slot Usage (%) 60 | . 69 57 77 Engine 1 | . . . 11 Treads 16 | . 28 14 22 Flight 5 | . . 6 . Device 3 | . 10 2 11 Storage 10 | . 1 11 11 Energy Gun 11 | . 14 11 11 Ballistic Gun 11 | . 14 11 11 Naked Turns . | . . . . Heaviest Build 47 | 3 44 47 47 Greatest Support 40 | 40 40 40 40 Greatest Overweight (x) 14 | . 1 14 1 Average Overweight (x) 3 | . . 4 1 Largest Inventory Capacity 20 | 5 20 20 20 Average Capacity 18 | 5 6 20 20 Most Carried 1 | 1 1 1 1 Average Carried . | . 1 1 1 Final Capacity 20 | 5 20 20 20 Final Carried 1 | 1 1 1 1 Class Distribution -------------------- 100% | Mutant Dominant Class ---------------- Mutant | -10/Materials Mutant | -9/Materials Mutant | -9/Mines Resources | -11 -10 -9 -9 ----------- Run | Scr Mat Mat Min Matter Collected 234 | . . 183 51 Remotely . | . . . . Salvage Created 234 | . . 183 51 Parts 22 | . . 15 7 Haulers Intercepted . | . . . . Recyclers Shooed . | . . . . Parts Field Recycled . | . . . . Retrieved Matter . | . . . . Parts Self-Destructed . | . . . . Prevented . | . . . . Kills | -11 -10 -9 -9 ------- Run | Scr Mat Mat Min Combat Hostiles Destroyed 7 | . . 3 4 Guns 7 | . . 3 4 Classes Destroyed 4 | . . 3 1 Watcher 2 | . . 2 . Swarmer 4 | . . . 4 Grunt 1 | . . 1 . Sentry 2 | . . 2 . Best Kill Streak 4 | . . 2 4 Combat Bots Only 4 | . . 2 4 Max Kills in Single Turn 2 | . . 1 2 Gunslinging 1 | . . . 1 Exploded . | . . . . Melee . | . . . . Uniques/NPCs Destroyed . | . . . . Combat | -11 -10 -9 -9 -------- Run | Scr Mat Mat Min Damage Taken 278 | . . 82 196 Core 35 | . . 11 24 Absorbed by Shields . | . . . . Core Remaining (%) 100 | 100 100 . . Volleys Fired 33 | . 1 10 22 Largest 2 | . 2 2 2 Hottest 60 | . 60 60 60 Shots Fired 65 | . 2 19 44 Gun 65 | . 2 19 44 Cannon . | . . . . Launcher . | . . . . Special . | . . . . Kinetic 33 | . 1 10 22 Thermal 32 | . 1 9 22 Explosive . | . . . . Electromagnetic . | . . . . Robot Hit Streak 4 | . 1 3 4 Robot Miss Streak 5 | . 1 5 4 Penetration Max . | . . . . Secondary Targets 2 | . . . 2 Max Gunslinging Chain 1 | . . . 1 Shots Hit Robots 18 | . 1 9 8 Core Hits 12 | . . 7 5 Critical Kills . | . . . . Critical Parts Destroyed . | . . . . Critical Strikes . | . . . . Melee Attacks . | . . . . Impact . | . . . . Slashing . | . . . . Piercing . | . . . . Sneak Attacks . | . . . . Combat Hostiles . | . . . . Follow-up Attacks . | . . . . Damage Inflicted 238 | . 10 111 117 Guns 236 | . 10 109 117 Cannons . | . . . . Explosions . | . . . . Melee . | . . . . Ramming 2 | . . 2 . Kinetic 163 | . 10 78 75 Thermal 73 | . . 31 42 Explosive . | . . . . Electromagnetic . | . . . . Impact . | . . . . Slashing . | . . . . Piercing . | . . . . Highest Corruption . | . . . . Average Corruption . | . . . . Corruption Purged . | . . . . Corruption Blocked . | . . . . Overload Shots . | . . . . Overflow Damage . | . . . . Projectiles . | . . . . Explosions . | . . . . Melee . | . . . . Knockbacks . | . . . . Impact . | . . . . Kinetic . | . . . . Secondary . | . . . . Self-Inflicted Damage . | . . . . Shots . | . . . . Rammed 2 | . . 2 . Targets Rammed 2 | . . 2 . Kicked . | . . . . Crushed . | . . . . Highest Temperature . | . . . . Average Temperature . | . . . . Received Heat Transfer 30 | . . 30 . Siege Activations . | . . . . Robots Corrupted . | . . . . Combat Hostiles . | . . . . Parts Fried . | . . . . Impact Corruptions . | . . . . Robots Melted . | . . . . Combat Hostiles . | . . . . Parts Melted . | . . . . Heat Transferred 175 | . . 75 100 Parts Sabotaged . | . . . . Parts Stolen . | . . . . Parts Stripped . | . . . . Power Chain Reactions . | . . . . Missiles Intercepted . | . . . . Alert | -11 -10 -9 -9 ------- Run | Scr Mat Mat Min Peak Influence 121 | . . 85 121 Initial 31 | . . . 31 Average 27 | . . 23 72 Maximum Alert Level . | . . . . Low Security (%) 100 | 100 100 100 100 Level 1 . | . . . . Level 2 . | . . . . Level 3 . | . . . . Level 4 . | . . . . Level 5 . | . . . . High Security . | . . . . Max Security . | . . . . Squads Dispatched 1 | . . 1 . Investigation . | . . . . Extermination . | . . . . Reinforcement 1 | . . 1 . Assault . | . . . . Garrison . | . . . . Intercept . | . . . . Searches Triggered . | . . . . Construction Impeded . | . . . . Haulers Reinforced . | . . . . Active Scanning Responses . | . . . . Cargo Convoy Interrupts . | . . . . Stealth | -11 -10 -9 -9 --------- Run | Scr Mat Mat Min Distress Signals . | . . . . Communications Jammed . | . . . . Distress Signals . | . . . . Times Spotted 20 | . 1 15 4 Peak Tracking Total 4 | . 1 1 4 Tactical Retreats . | . . . . Traps | -11 -10 -9 -9 ------- Run | Scr Mat Mat Min Traps Triggered 1 | . . 1 . Indirectly . | . . . . Trap Hack Attempts . | . . . . Triggered . | . . . . Disarmed . | . . . . Reprogrammed . | . . . . Reused . | . . . . Traps Extracted . | . . . . Installed . | . . . . Triggered . | . . . . Machines | -11 -10 -9 -9 ---------- Run | Scr Mat Mat Min Machines Disabled . | . . . . Max in Single Turn . | . . . . Machines Sabotaged . | . . . . Garrisons Compromised . | . . . . Overloaded Fab Kills . | . . . . Hacking | -11 -10 -9 -9 --------- Run | Scr Mat Mat Min Machines Accessed . | . . . . Terminals . | . . . . Fabricators . | . . . . Repair Stations . | . . . . Recycling Units . | . . . . Scanalyzers . | . . . . Garrison Access . | . . . . Total Hacks . | . . . . Successful . | . . . . Failed . | . . . . Catastrophic . | . . . . Database Lockouts . | . . . . Manual . | . . . . Terminals . | . . . . Fabricators . | . . . . Repair Stations . | . . . . Recycling Units . | . . . . Scanalyzers . | . . . . Garrison Access . | . . . . Terminal Hacks . | . . . . Fabricator Hacks . | . . . . Repair Station Hacks . | . . . . Recycling Unit Hacks . | . . . . Scanalyzer . | . . . . Garrison Access Hacks . | . . . . Unauthorized Hacks . | . . . . Terminals . | . . . . Fabricators . | . . . . Repair Stations . | . . . . Recycling Units . | . . . . Scanalyzers . | . . . . Garrison Access . | . . . . Data Cores Recovered . | . . . . Used . | . . . . Hacking Detections . | . . . . Full Trace Events . | . . . . Feedback Events . | . . . . Feedback Blocked . | . . . . Robot Schematics Acquired . | . . . . Robots Built . | . . . . Authchips . | . . . . Time . | . . . . Total Robot Build Rating . | . . . . Part Schematics Acquired . | . . . . Parts Built . | . . . . Authchips . | . . . . Time . | . . . . Total Part Build Rating . | . . . . Parts Repaired . | . . . . Time . | . . . . Parts Recycled . | . . . . Recycled Matter . | . . . . Retrieved Matter . | . . . . Retrieved Components . | . . . . Parts Scanalyzed . | . . . . Part Schematics Acquired . | . . . . Parts Damaged . | . . . . Bothacking | -11 -10 -9 -9 ------------ Run | Scr Mat Mat Min Used RIF Installer . | . . . . Robots Hacked . | . . . . Non-combat . | . . . . Combat . | . . . . Robot Hacks Applied . | . . . . Relay Couplers Released . | . . . . Fabnet Peak Effective % . | . . . . Robots Rewired . | . . . . Allies Hacked . | . . . . Hacks Repelled . | . . . . Allies | -11 -10 -9 -9 -------- Run | Scr Mat Mat Min Total Allies . | . . . . Largest Group . | . . . . Highest-Rated Group . | . . . . Highest-Rated Ally . | . . . . Total Orders . | . . . . Ally Attacks . | . . . . Total Damage . | . . . . Kills . | . . . . Allies Corrupted . | . . . . Allies Melted . | . . . . Intel | -11 -10 -9 -9 ------- Run | Scr Mat Mat Min Robot Analysis Total . | . . . . Derelict Logs Recovered . | . . . . Drone Launches . | . . . . Drone Recoveries . | . . . . Exploration | -11 -10 -9 -9 ------------- Run | Scr Mat Mat Min Turns Passed 4468 | 76 307 3562 523 Spaces Moved 1237 | 55 181 812 189 Core 54 | 17 . 37 . Treads 822 | 38 181 414 189 Legs . | . . . . Wheels . | . . . . Hover . | . . . . Flight 361 | . . 361 . Fastest Speed 50 | 50 160 240 240 Average Speed 351 | 126 167 433 240 Slowest Speed 750 | 160 240 750 240 Overloaded Moves . | . . . . Propulsion Burnouts . | . . . . Robots Hopped . | . . . . Cave-ins Triggered . | . . . . Exploration Rate (%) 27 | 5 26 30 49 Regions Visited 3 Branch Regions 1 Pre-discovered Areas 1 | . . . 1 Known Exits Taken . | . . . . Unknown Exits Taken 3 | 1 1 1 . Scrap Searched . | . . . . Spaces Dug . | . . . . Terrain Destroyed . | . . . . Melee . | . . . . Projectile . | . . . . AOE . | . . . . Terrain Rammed . | . . . . Walls Destroyed . | . . . . Machines Disabled . | . . . . Actions | -11 -10 -9 -9 --------- Run | Scr Mat Mat Min Total 1292 | 60 183 835 214 Wait 5 | . . 4 1 Move 1234 | 54 180 811 189 Hop . | . . . . Pick Up . | . . . . Fast Attach 13 | 5 2 5 1 Attach . | . . . . Detach 1 | 1 . . . Swap . | . . . . Drop 4 | . . 3 1 Fire 33 | . 1 10 22 Melee . | . . . . Ram . | . . . . Kick . | . . . . Crush 2 | . . 2 . Escape Stasis . | . . . . Rewire . | . . . . Trap . | . . . . Miscellaneous . | . . . . Route ------- -11/Scrapyard -10/Materials -9/Materials -9/Mines History --------- Turn | Location | Event 8 | -11/Scrapyard | Discovered new exit (range 15) 77 | -11/Scrapyard | Entered Materials 314 | -10/Materials | Build established: Mutant 322 | -10/Materials | Discovered new exit (range 16) 384 | -10/Materials | Entered another Materials area 384 | -9/Materials | Evolved 2 slots: Weapon x2 3910 | -9/Materials | Discovered new exit (range 7) 3946 | -9/Materials | Entered Mines 4308 | -9/Mines | Learned location of Storage (-7) 4428 | -9/Mines | Excavation squad dispatched 4428 | -9/Mines | A large section of the Mines collapsed 4469 | -9/Mines | Self-destructed Last Messages --------------- 04087_ Acquired Sml. Laser. 04089_ R-06 Scavenger collects Flight Unit. 04096_ Acquired 10 matter. 04101_ K-01 Serf collects debris. 04102_ R-06 Scavenger collects Lgt. Assault Rifle. 04106_ K-01 Serf collects debris. 04106_ R-06 Scavenger collects Flight Unit. 04109_ K-01 Serf collects debris. 04109_ R-06 Scavenger collects Lgt. Assault Rifle. 04113_ K-01 Serf collects debris. 04308_ A derelict emerges from the shadows: "Are any of them following you? I'm here trying to lose some heat after our second raid on Storage failed. Whatever you do stay away from that place, they've tightened security following our previous successful raids." World map updated: -7/Storage. 04310_ MH-6HQ(g): "We scattered so the Unaware couldn't effectively use their advantage in numbers, and I suggest you do the same." 04310_ MH-6HQ(g) slips back into the shadows. 04428_ ALERT: Suspicious cave-in, suspected derelict activity in mines. Dispatching escorted excavation squad. Map ----- +----------------------------------------------------+ | ???????????????????????????????????????? | | ???????????????????????????????????????? | | ???????????????????????????????????????? | | ???????????????????????????????????????? | | ???????????????????????????????????????? | | ???????????????????????????????????????? | | ???????????????????????????????????????? | | ???????????????????????????????????????? | | ???????????????????????????????????????? | | ???????????????????????????????????????? | | ???????????????????????????????????????? | | ???????????????????????????????????????? | | ???????????????????????????????????????? | | ???????????????????????????????????????? | | ???????????????????????????????????????? | | ???????????????????????????????????????? | | ???????????????????????????????????????? | | ???????????????????????????????????????? | | ????????????????????????###????????????? | | ???????????????????????? #????????????? | | ????????????????????????# #????????????? | | ????????????????????????# #????????????? | | ???????????????????????## ####?????????? | | ??????????????????????## ##????????? | | ?????????????????###### ### ###??????? | | ??????###????????# #@# #??????? | | ?????## ####????# ### ### #??????? | | ?????# ##???# #?## ## #??????? | | ????## ##### #??## ##???#??????? | | ????# ## #???#####???????????? | | ????# #???????????????????? | | ????# #######???????????????? | | ????## #### ##????####??????? | | ?????## ##??## ##?????? | | ??????# #### ##????? | | ??????# # ## ##???? | | ??????## #### ## ##??? | | ??????## #??# ### #### #??? | | ?????## ##?# #?## ##??## #??? | | ????## ### #??# ##????# ##??? | | ????# ## ##?# #?????# ##???? | | ????# ### #?????####????? | | ????# ### ##?????????????? | | ????## """ ######??????????????? | | ?????## """ ##?????????????????? | | #?????## """ #?????????????????? | | #??????# ##????????????????? | | #?????## #????????????????? | | #??#### #????????????????? | | #### #????????????????? | +----------------------------------------------------+ Best States ------------- Heat Dissipation 38 Energy Generation 10 Energy Capacity 125 Matter Stores 160 Matter Capacity 300 Sight Range 16 Robot Scan Range 14 Terrain Scan Density 10 Evasion (%) 50 Recoil Reduction 2 Item Schematics ----------------- None Robot Schematics ------------------ None Fabricated ------------ Nothing Alien Tech Used ----------------- None Achievements -------------- None Challenges ------------ None Game ------ Seed SlugAssembledNanoactuators Manual? 0 Play Time 00:16:29 Cumulative 65.0 hours Start 2022.11.02 @ 23:59:41 End 2022.11.03 @ 00:12:56 Sessions 1 Manual Loads 0 Difficulty Rogue Special Mode None Game No. 141 Rogue 141 Adventurer 0 Explorer 0 Win Type - Total 0 Types 0/0/0/0/0/0/0/0/0 Lore% 25 Gallery% 31 Achievement% 26 Wizard Run 0 Options --------- ASCII 0 Keyboard 0 Movement Numpad Keybinds 0 Fullscreen 1 Font 18/SmallcapsGlow Map View 76x50 Tactical HUD 1 Map Filters NONE Filters NONE Steam 1 RUN: de377e3a-2024-4d22-9e8d-d0ee57aa61e1